fUST/lending_fUST_20250718
["ID","MTS","AMOUNT","RATE_DAILY","PERIOD"]
[372909440,1752803432383,-469.42325896,0.00016438,2]
[372909442,1752803432392,-465.69143519,0.00016438,2]
[372909444,1752803432402,-464.46396701,0.00016438,2]
[372909446,1752803432411,-469.98927654,0.00016438,2]
[372909448,1752803432421,-468.61024637,0.00016438,2]
[372909450,1752803432430,-461.59036993,0.00016438,2]
[372909452,1752803432441,-460.0,0.00016438,2]
[372909454,1752803432450,-460.0,0.00016438,2]
[372909456,1752803432460,-462.80194748,0.00016438,2]
[372909458,1752803432469,-460.80972176,0.00016438,2]
[372909460,1752803432479,-460.0,0.00016438,2]
[372909462,1752803432488,-462.27055875,0.00016438,2]
[372909464,1752803432497,-460.0,0.00016438,2]
[372909466,1752803432507,-460.0,0.00016438,2]
[372909468,1752803432516,-18.95400756,0.00016438,2]
[372909470,1752803432528,-439.41409051,0.00016438,2]
[372909473,1752803432545,-3.37733506,0.00016438,2]
[372909475,1752803432554,-467.0193159,0.00016438,2]
[372909477,1752803432564,-461.2483902,0.00016438,2]
[372909479,1752803432573,-460.0,0.00016438,2]
[372909481,1752803432583,-461.56120097,0.00016438,2]
[372909483,1752803432593,-460.0,0.00016438,2]
[372909485,1752803432607,-475.33535924,0.00016438,2]
[372909487,1752803432619,-465.49557599,0.00016438,2]
[372909489,1752803432628,-460.0,0.00016438,2]
[372909491,1752803432638,-460.0,0.00016438,2]
[372909493,1752803432647,-461.65772074,0.00016438,2]
[372909495,1752803432657,-460.64546913,0.00016438,2]
[372909497,1752803432667,-460.0,0.00016438,2]
[372909499,1752803432676,-461.61000419,0.00016438,2]
[372909501,1752803432685,-460.32596789,0.00016438,2]
[372909503,1752803432695,-465.64539586,0.00016438,2]
[372909504,1752803432707,-460.53183534,0.00016438,2]
[372909507,1752803432718,-460.0,0.00016438,2]
[372909509,1752803432728,-274.72861516,0.00016438,2]
[372909511,1752803432737,-461.5435495,0.00016438,2]
[372909513,1752803432747,-460.0,0.00016438,2]
[372909515,1752803432756,-506.87429205,0.00016438,2]
[372909517,1752803432765,-460.0,0.00016438,2]
[372909519,1752803432775,-522.51121129,0.00016438,2]
[372909521,1752803432787,-276.83397783,0.00016438,2]
[372909523,1752803432796,-462.83753874,0.00016438,2]
[372909525,1752803432806,-463.58654986,0.00016438,2]
[372909527,1752803432815,-461.67017613,0.00016438,2]
[372909529,1752803432825,-375.19745022,0.00016438,2]
[372909531,1752803432834,-461.87339083,0.00016438,2]
[372909533,1752803432845,-461.59009556,0.00016438,2]
[372909535,1752803432854,-460.55797183,0.00016438,2]
[372909537,1752803432863,-460.0,0.00016438,2]
[372909539,1752803432874,-510.29879105,0.00016438,2]
[372909541,1752803432884,-462.80844128,0.00016438,2]
[372909542,1752803432894,-460.0,0.00016438,2]
[372909545,1752803432903,-460.0,0.00016438,2]
[372909547,1752803432913,-460.0,0.00016438,2]
[372909549,1752803432923,-463.5808254,0.00016438,2]
[372909551,1752803432933,-460.0,0.00016438,2]
[372909553,1752803432942,-462.91590828,0.00016438,2]
[372909555,1752803432951,-461.43753842,0.00016438,2]
[372909557,1752803432961,-460.40745923,0.00016438,2]
[372909559,1752803432971,-460.64124883,0.00016438,2]
[372909561,1752803432981,-378.23186656,0.00016438,2]
[372909563,1752803432990,-601.26563754,0.00016438,2]
[372909565,1752803433000,-460.0,0.00016438,2]
[372909567,1752803433009,-468.90537749,0.00016438,2]
[372909569,1752803433018,-463.31788376,0.00016438,2]
[372909571,1752803433028,-466.96516593,0.00016438,2]
[372909573,1752803433038,-465.97845678,0.00016438,2]
[372909575,1752803433048,-472.97142771,0.00016438,2]
[372909577,1752803433058,-460.0,0.00016438,2]
[372909579,1752803433067,-462.49974058,0.00016438,2]
[372909581,1752803433077,-460.0,0.00016438,2]
[372909583,1752803433088,-460.59476185,0.00016438,2]
[372909585,1752803433098,-468.18745857,0.00016438,2]
[372909587,1752803433109,-494.37432975,0.00016438,2]
[372909589,1752803433119,-461.75519278,0.00016438,2]
[372909591,1752803433128,-464.58337738,0.00016438,2]
[372909593,1752803433137,-467.89993122,0.00016438,2]
[372909595,1752803433147,-461.14356729,0.00016438,2]
[372909597,1752803433157,-460.0,0.00016438,2]
[372909599,1752803433166,-471.76232482,0.00016438,2]
[372909601,1752803433176,-468.46034638,0.00016438,2]
[372909603,1752803433186,-356.75901856,0.00016438,2]
[372909605,1752803433195,-466.07308253,0.00016438,2]
[372909607,1752803433205,-461.05619598,0.00016438,2]
[372909609,1752803433215,-503.97524558,0.00016438,2]
[372909611,1752803433225,-462.42648364,0.00016438,2]
[372909613,1752803433235,-460.0,0.00016438,2]
[372909614,1752803433245,-460.72388576,0.00016438,2]
[372909616,1752803433254,-463.22168155,0.00016438,2]
[372909618,1752803433264,-183.08407377,0.00016438,2]
[372909620,1752803433274,-461.05095945,0.00016438,2]
[372909621,1752803433284,-464.3594138,0.00016438,2]
[372909623,1752803433294,-468.32440429,0.00016438,2]
[372909624,1752803433304,-463.41390812,0.00016438,2]
[372909625,1752803433314,-460.0,0.00016438,2]
[372909626,1752803433324,-461.29763563,0.00016438,2]
[372909627,1752803433334,-462.22935512,0.00016438,2]
[372909628,1752803433344,-460.84674508,0.00016438,2]
[372909629,1752803433354,-460.0,0.00016438,2]
[372909630,1752803433364,-471.56303873,0.00016438,2]
[372909631,1752803433374,-460.0,0.00016438,2]
[372909632,1752803433384,-465.02410137,0.00016438,2]
[372909633,1752803433394,-286.32914476,0.00016438,2]
[372909635,1752803433404,-464.69502498,0.00016438,2]
[372909636,1752803433413,-464.71392817,0.00016438,2]
[372909638,1752803433423,-465.46976519,0.00016438,2]
[372909639,1752803433433,-460.0,0.00016438,2]
[372909640,1752803433443,-462.9809212,0.00016438,2]
[372909641,1752803433452,-460.0,0.00016438,2]
[372909642,1752803433462,-465.56889511,0.00016438,2]
[372909643,1752803433472,-462.59857611,0.00016438,2]
[372909644,1752803433482,-461.82276987,0.00016438,2]
[372909645,1752803433492,-460.0,0.00016438,2]
[372909646,1752803433501,-461.84102447,0.00016438,2]
[372909647,1752803433511,-451.89737255,0.00016438,2]
[372909648,1752803433521,-460.0,0.00016438,2]
[372909649,1752803433530,-463.86137209,0.00016438,2]
[372909650,1752803433540,-460.0,0.00016438,2]
[372909651,1752803433550,-460.0,0.00016438,2]
[372909652,1752803433560,-470.8844528,0.00016438,2]
[372909653,1752803433571,-476.8470794,0.00016438,2]
[372909654,1752803433581,-165.83854891,0.00016438,2]
[372909655,1752803433591,-460.0,0.00016438,2]
[372909656,1752803433604,-460.0,0.00016438,2]
[372909657,1752803433613,-462.5212187,0.00016438,2]
[372909658,1752803433635,-462.60958701,0.00016438,2]
[372909659,1752803433647,-461.60864452,0.00016438,2]
[372909660,1752803433657,-460.93003071,0.00016438,2]
[372909661,1752803433667,-460.0,0.00016438,2]
[372909662,1752803433677,-501.48030834,0.00016438,2]
[372909663,1752803433689,-462.63829315,0.00016438,2]
[372909664,1752803433699,-469.55054683,0.00016438,2]
[372909665,1752803433709,-460.0,0.00016438,2]
[372909666,1752803433719,-460.0,0.00016438,2]
[372909667,1752803433729,-463.74876557,0.00016438,2]
[372909668,1752803433739,-462.04596198,0.00016438,2]
[372909669,1752803433749,-463.82522409,0.00016438,2]
[372909670,1752803433759,-461.9173685,0.00016438,2]
[372909671,1752803433768,-460.0,0.00016438,2]
[372909672,1752803433780,-460.0,0.00016438,2]
[372909673,1752803433791,-460.0,0.00016438,2]
[372909674,1752803433802,-463.59371567,0.00016438,2]
[372909675,1752803433812,-465.04943502,0.00016438,2]
[372909676,1752803433824,-476.31042463,0.00016438,2]
[372909677,1752803433833,-460.0,0.00016438,2]
[372909678,1752803433846,-462.24185526,0.00016438,2]
[372909679,1752803433856,-517.77865278,0.00016438,2]
[372909680,1752803433867,-462.81818917,0.00016438,2]
[372909681,1752803433878,-500.0,0.00016438,2]
[372909682,1752803433889,-431.32816702,0.00016438,2]
[372909683,1752803433899,-460.0,0.00016438,2]
[372909684,1752803433910,-460.0,0.00016438,2]
[372909686,1752803433920,-460.0,0.00016438,2]
[372909687,1752803433931,-460.0,0.00016438,2]
[372909688,1752803433942,-460.0,0.00016438,2]
[372909689,1752803433953,-460.0,0.00016438,2]
[372909690,1752803433963,-500.0,0.00016438,2]
[372909691,1752803433974,-500.0,0.00016438,2]
[372909692,1752803433984,-500.0,0.00016438,2]
[372909693,1752803433995,-500.0,0.00016438,2]
[372909694,1752803434006,-500.0,0.00016438,2]
[372909695,1752803434017,-500.0,0.00016438,2]
[372909696,1752803434027,-384.6488551,0.00016438,2]
[372909697,1752803434038,-460.0,0.00016438,2]
[372909698,1752803434049,-460.0,0.00016438,2]
[372909699,1752803434060,-464.67489554,0.00016438,2]
[372909700,1752803434071,-460.89329294,0.00016438,2]
[372909701,1752803434081,-462.08831482,0.00016438,2]
[372909702,1752803434094,-460.0,0.00016438,2]
[372909703,1752803434104,-460.0,0.00016438,2]
[372909704,1752803434115,-462.55819887,0.00016438,2]
[372909705,1752803434126,-461.2103728,0.00016438,2]
[372909706,1752803434136,-460.0,0.00016438,2]
[372909708,1752803434147,-460.0,0.00016438,2]
[372909709,1752803434157,-463.58982943,0.00016438,2]
[372909710,1752803434167,-460.0,0.00016438,2]
[372909711,1752803434178,-468.0237575,0.00016438,2]
[372909712,1752803434188,-463.81428015,0.00016438,2]
[372909713,1752803434198,-460.0,0.00016438,2]
[372909714,1752803434209,-460.0,0.00016438,2]
[372909715,1752803434219,-460.0,0.00016438,2]
[372909717,1752803434230,-460.0,0.00016438,2]
[372909718,1752803434240,-462.55537783,0.00016438,2]
[372909719,1752803434250,-461.67084709,0.00016438,2]
[372909720,1752803434260,-460.0,0.00016438,2]
[372909721,1752803434270,-471.6349472,0.00016438,2]
[372909722,1752803434281,-460.70761916,0.00016438,2]
[372909723,1752803434291,-468.91139926,0.00016438,2]
[372909724,1752803434302,-460.0,0.00016438,2]
[372909725,1752803434313,-463.74784503,0.00016438,2]
[372909726,1752803434323,-462.57209767,0.00016438,2]
[372909727,1752803434332,-460.0,0.00016438,2]
[372909728,1752803434343,-460.0,0.00016438,2]
[372909729,1752803434354,-464.26629101,0.00016438,2]
[372909730,1752803434365,-460.0,0.00016438,2]
[372909731,1752803434376,-462.7060483,0.00016438,2]
[372909732,1752803434386,-463.94962567,0.00016438,2]
[372909733,1752803434397,-460.0,0.00016438,2]
[372909734,1752803434407,-460.0,0.00016438,2]
[372909735,1752803434416,-460.0,0.00016438,2]
[372909736,1752803434426,-202.77994986,0.00016438,2]
[372909737,1752803434436,-539.38662354,0.00016438,2]
[372909738,1752803434445,-464.88705092,0.00016438,2]
[372909739,1752803434456,-461.8412445,0.00016438,2]
[372909740,1752803434465,-460.0,0.00016438,2]
[372909741,1752803434475,-464.1644116,0.00016438,2]
[372909742,1752803434485,-461.95750587,0.00016438,2]
[372909743,1752803434495,-460.0,0.00016438,2]
[372909744,1752803434505,-464.54587855,0.00016438,2]
[372909745,1752803434515,-467.79420806,0.00016438,2]
[372909746,1752803434524,-460.0,0.00016438,2]
[372909747,1752803434534,-460.0,0.00016438,2]
[372909748,1752803434543,-460.0,0.00016438,2]
[372909749,1752803434553,-460.0,0.00016438,2]
[372909750,1752803434563,-463.51279721,0.00016438,2]
[372909751,1752803434572,-460.0,0.00016438,2]
[372909752,1752803434582,-463.24422494,0.00016438,2]
[372909753,1752803434594,-465.19777828,0.00016438,2]
[372909754,1752803434605,-465.56135732,0.00016438,2]
[372909755,1752803434616,-451.65854266,0.00016438,2]
[372909756,1752803434626,-460.0,0.00016438,2]
[372909757,1752803434636,-464.50364415,0.00016438,2]
[372909758,1752803434646,-470.49630127,0.00016438,2]
[372909759,1752803434656,-461.01298172,0.00016438,2]
[372909760,1752803434667,-461.48844199,0.00016438,2]
[372909761,1752803434680,-460.0,0.00016438,2]
[372909762,1752803434692,-460.0,0.00016438,2]
[372909763,1752803434702,-461.05206333,0.00016438,2]
[372909764,1752803434713,-489.22160168,0.00016438,2]
[372909765,1752803434723,-588.97,0.00016438,2]
[372909766,1752803434733,-463.38484543,0.00016438,2]
[372909767,1752803434742,-464.10537348,0.00016438,2]
[372909768,1752803434752,-478.37811699,0.00016438,2]
[372909769,1752803434762,-460.0,0.00016438,2]
[372909770,1752803434772,-460.0,0.00016438,2]
[372909771,1752803434784,-460.0,0.00016438,2]
[372909772,1752803434794,-462.36074759,0.00016438,2]
[372909773,1752803434804,-461.71702879,0.00016438,2]
[372909774,1752803434814,-485.81571936,0.00016438,2]
[372909775,1752803434824,-463.65562263,0.00016438,2]
[372909776,1752803434834,-460.0,0.00016438,2]
[372909777,1752803434846,-460.0,0.00016438,2]
[372909778,1752803434857,-460.0,0.00016438,2]
[372909779,1752803434867,-468.31195075,0.00016438,2]
[372909781,1752803434877,-471.64876364,0.00016438,2]
[372909782,1752803434888,-462.20566043,0.00016438,2]
[372909783,1752803434898,-460.96358084,0.00016438,2]
[372909784,1752803434912,-439.18322323,0.00016438,2]
[372909785,1752803434921,-460.0,0.00016438,2]
[372909786,1752803434931,-464.52993801,0.00016438,2]
[372909787,1752803434941,-460.0,0.00016438,2]
[372909788,1752803434951,-461.16003716,0.00016438,2]
[372909789,1752803434960,-460.0,0.00016438,2]
[372909790,1752803434970,-460.0,0.00016438,2]
[372909791,1752803434980,-463.6554268,0.00016438,2]
[372909792,1752803434990,-465.42612677,0.00016438,2]
[372909793,1752803434999,-465.49374596,0.00016438,2]
[372909794,1752803435009,-500.0,0.00016438,2]
[372909795,1752803435019,-469.36793708,0.00016438,2]
[372909796,1752803435029,-500.0,0.00016438,2]
[372909797,1752803435039,-500.0,0.00016438,2]
[372909798,1752803435048,-457.71900645,0.00016438,2]
[372909799,1752803435058,-500.0,0.00016438,2]
[372909800,1752803435067,-500.0,0.00016438,2]
[372909801,1752803435077,-1326.95,0.00016438,2]
[372909802,1752803435086,-500.0,0.00016438,2]
[372909803,1752803435097,-460.0,0.00016438,2]
[372909804,1752803435106,-468.15354988,0.00016438,2]
[372909805,1752803435116,-500.0,0.00016438,2]
[372909806,1752803435126,-500.0,0.00016438,2]
[372909807,1752803435135,-500.0,0.00016438,2]
[372909808,1752803435145,-500.0,0.00016438,2]
[372909809,1752803435155,-500.0,0.00016438,2]
[372909811,1752803435164,-500.0,0.00016438,2]
[372909812,1752803435174,-500.0,0.00016438,2]
[372909813,1752803435183,-462.64710408,0.00016438,2]
[372909814,1752803435193,-500.0,0.00016438,2]
[372909815,1752803435203,-460.0,0.00016438,2]
[372909816,1752803435213,-460.0,0.00016438,2]
[372909817,1752803435223,-462.34560879,0.00016438,2]
[372909818,1752803435366,-463.5257415,0.00016438,2]
[372909819,1752803435376,-463.41389983,0.00016438,2]
[372909820,1752803435386,-461.1169573,0.00016438,2]
[372909821,1752803435396,-460.0,0.00016438,2]
[372909822,1752803435405,-193.05795981,0.00016438,2]
[372909823,1752803435415,-635.59,0.00016438,2]
[372909824,1752803435424,-460.0,0.00016438,2]
[372909825,1752803435433,-463.27129818,0.00016438,2]
[372909826,1752803435443,-467.67,0.00016438,2]
[372909827,1752803435453,-460.0,0.00016438,2]
[372909828,1752803435463,-460.0,0.00016438,2]
[372909829,1752803435472,-500.0,0.00016438,2]
[372909831,1752803435482,-500.0,0.00016438,2]
[372909832,1752803435492,-444.66322092,0.00016438,2]
[372909833,1752803435502,-462.07297876,0.00016438,2]
[372909834,1752803435512,-460.0,0.00016438,2]
[372909835,1752803435522,-460.0,0.00016438,2]
[372909836,1752803435532,-608.91,0.00016438,2]
[372909837,1752803435543,-608.91,0.00016438,2]
[372909838,1752803435554,-460.0,0.00016438,2]
[372909839,1752803435563,-608.91,0.00016438,2]
[372909840,1752803435574,-608.91,0.00016438,2]
[372909841,1752803435584,-608.91,0.00016438,2]
[372909842,1752803435595,-608.91,0.00016438,2]
[372909843,1752803435605,-460.0,0.00016438,2]
[372909844,1752803435619,-462.55157068,0.00016438,2]
[372909845,1752803435629,-460.0,0.00016438,2]
[372909846,1752803435638,-462.4297574,0.00016438,2]
[372909847,1752803435649,-460.0,0.00016438,2]
[372909848,1752803435658,-464.34410428,0.00016438,2]
[372909849,1752803435669,-460.0,0.00016438,2]
[372909850,1752803435679,-463.85652185,0.00016438,2]
[372909851,1752803435689,-460.0,0.00016438,2]
[372909852,1752803435701,-460.0,0.00016438,2]
[372909853,1752803435711,-460.0,0.00016438,2]
[372909854,1752803435722,-460.0,0.00016438,2]
[372909855,1752803435732,-465.81464672,0.00016438,2]
[372909856,1752803435741,-461.07920231,0.00016438,2]
[372909857,1752803435751,-460.0,0.00016438,2]
[372909858,1752803435761,-461.16499349,0.00016438,2]
[372909859,1752803435771,-222.32300068,0.00016438,2]
[372909860,1752803435780,-460.89190463,0.00016438,2]
[372909861,1752803435789,-460.0,0.00016438,2]
[372909862,1752803435799,-466.41585904,0.00016438,2]
[372909863,1752803435809,-464.05678945,0.00016438,2]
[372909864,1752803435818,-503.1889428,0.00016438,2]
[372909865,1752803435828,-461.82973326,0.00016438,2]
[372909866,1752803435839,-464.77544836,0.00016438,2]
[372909867,1752803435850,-779.11,0.00016438,2]
[372909868,1752803435860,-460.0,0.00016438,2]
[372909869,1752803435871,-460.90616824,0.00016438,2]
[372909870,1752803435881,-465.43902389,0.00016438,2]
[372909871,1752803435890,-462.84141184,0.00016438,2]
[372909872,1752803435900,-277.42724694,0.00016438,2]
[372909873,1752803435910,-460.0,0.00016438,2]
[372909874,1752803435919,-461.35242345,0.00016438,2]
[372909875,1752803435929,-462.65323893,0.00016438,2]
[372909876,1752803435939,-460.0,0.00016438,2]
[372909877,1752803435948,-460.0,0.00016438,2]
[372909878,1752803435958,-463.22496823,0.00016438,2]
[372909880,1752803435967,-462.77500307,0.00016438,2]
[372909881,1752803435976,-460.0,0.00016438,2]
[372909882,1752803435986,-460.0,0.00016438,2]
[372909883,1752803435997,-460.0,0.00016438,2]
[372909884,1752803436007,-462.10008331,0.00016438,2]
[372909885,1752803436018,-469.22416153,0.00016438,2]
[372909886,1752803436028,-452.92409245,0.00016438,2]
[372909887,1752803436038,-460.0,0.00016438,2]
[372909888,1752803436047,-460.0,0.00016438,2]
[372909889,1752803436057,-468.04404724,0.00016438,2]
[372909890,1752803436067,-463.05506073,0.00016438,2]
[372909891,1752803436077,-460.0,0.00016438,2]
[372909892,1752803436087,-460.0,0.00016438,2]
[372909893,1752803436096,-460.0,0.00016438,2]
[372909894,1752803436106,-433.51989128,0.00016438,2]
[372909895,1752803436115,-1003.28402983,0.00016438,2]
[372909897,1752803436125,-462.5750455,0.00016438,2]
[372909898,1752803436135,-461.9473246,0.00016438,2]
[372909899,1752803436145,-460.0,0.00016438,2]
[372909900,1752803436154,-460.0,0.00016438,2]
[372909901,1752803436163,-461.85967281,0.00016438,2]
[372909902,1752803436173,-460.0,0.00016438,2]
[372909903,1752803436182,-460.0,0.00016438,2]
[372909904,1752803436192,-394.92346081,0.00016438,2]
[372909905,1752803436201,-465.7676598,0.00016438,2]
[372909906,1752803436211,-462.44483877,0.00016438,2]
[372909907,1752803436220,-460.95911612,0.00016438,2]
[372909908,1752803436231,-463.4971907,0.00016438,2]
[372909909,1752803436240,-466.53872909,0.00016438,2]
[372909910,1752803436251,-460.0,0.00016438,2]
[372909911,1752803436261,-463.32119079,0.00016438,2]
[372909912,1752803436272,-460.0,0.00016438,2]
[372909913,1752803436282,-460.0,0.00016438,2]
[372909914,1752803436292,-460.0,0.00016438,2]
[372909915,1752803436302,-460.0,0.00016438,2]
[372909916,1752803436311,-1340.87,0.00016438,2]
[372909917,1752803436321,-460.0,0.00016438,2]
[372909918,1752803436331,-685.18,0.00016438,2]
[372909919,1752803436341,-498.31736671,0.00016438,2]
[372909920,1752803436351,-460.0,0.00016438,2]
[372909921,1752803436360,-461.05200265,0.00016438,2]
[372909922,1752803436370,-460.0,0.00016438,2]
[372909923,1752803436380,-460.0,0.00016438,2]
[372909924,1752803436390,-460.0,0.00016438,2]
[372909925,1752803436400,-460.0,0.00016438,2]
[372909926,1752803436411,-461.13511071,0.00016438,2]
[372909927,1752803436422,-460.0,0.00016438,2]
[372909928,1752803436433,-493.59,0.00016438,2]
[372909929,1752803436444,-460.83031915,0.00016438,2]
[372909930,1752803436455,-460.0,0.00016438,2]
[372909932,1752803436466,-460.0,0.00016438,2]
[372909933,1752803436477,-471.02301852,0.00016438,2]
[372909934,1752803436488,-461.61340555,0.00016438,2]
[372909935,1752803436499,-461.81983069,0.00016438,2]
[372909936,1752803436510,-263.4916769,0.00016438,2]
[372909937,1752803436520,-460.0,0.00016438,2]
[372909938,1752803436531,-460.0,0.00016438,2]
[372909939,1752803436541,-493.43,0.00016438,2]
[372909940,1752803436551,-461.09431257,0.00016438,2]
[372909941,1752803436560,-460.0,0.00016438,2]
[372909942,1752803436570,-461.36015059,0.00016438,2]
[372909943,1752803436579,-461.48058406,0.00016438,2]
[372909945,1752803436591,-460.0,0.00016438,2]
[372909946,1752803436603,-466.70971915,0.00016438,2]
[372909947,1752803436615,-460.0,0.00016438,2]
[372909948,1752803436624,-460.0,0.00016438,2]
[372909949,1752803436634,-463.19226881,0.00016438,2]
[372909950,1752803436643,-510.35497447,0.00016438,2]
[372909951,1752803436654,-460.0,0.00016438,2]
[372909952,1752803436663,-460.0,0.00016438,2]
[372909953,1752803436674,-250.78946978,0.00016438,2]
[372909954,1752803436684,-460.0,0.00016438,2]
[372909955,1752803436694,-460.87747867,0.00016438,2]
[372909956,1752803436703,-460.0,0.00016438,2]
[372909957,1752803436714,-460.0,0.00016438,2]
[372909958,1752803436724,-464.10686487,0.00016438,2]
[372909959,1752803436734,-461.23920394,0.00016438,2]
[372909960,1752803436743,-460.0,0.00016438,2]
[372909961,1752803436753,-460.0,0.00016438,2]
[372909962,1752803436763,-460.0,0.00016438,2]
[372909963,1752803436774,-461.39642852,0.00016438,2]
[372909964,1752803436784,-462.41797527,0.00016438,2]
[372909965,1752803436794,-484.75454419,0.00016438,2]
[372909966,1752803436803,-460.0,0.00016438,2]
[372909967,1752803436813,-460.0,0.00016438,2]
[372909968,1752803436823,-461.1746693,0.00016438,2]
[372909969,1752803436832,-460.0,0.00016438,2]
[372909970,1752803436843,-462.62290861,0.00016438,2]
[372909971,1752803436852,-462.37418268,0.00016438,2]
[372909972,1752803436862,-460.0,0.00016438,2]
[372909974,1752803436871,-461.62849085,0.00016438,2]
[372909975,1752803436881,-460.85490459,0.00016438,2]
[372909976,1752803436891,-460.0,0.00016438,2]
[372909977,1752803436900,-460.0,0.00016438,2]
[372909978,1752803436910,-461.70207426,0.00016438,2]
[372909979,1752803436920,-460.0,0.00016438,2]
[372909980,1752803436930,-461.17515138,0.00016438,2]
[372909981,1752803436940,-460.0,0.00016438,2]
[372909982,1752803436949,-460.0,0.00016438,2]
[372909983,1752803436959,-460.0,0.00016438,2]
[372909984,1752803436969,-463.13429231,0.00016438,2]
[372909985,1752803436981,-461.71458476,0.00016438,2]
[372909986,1752803436991,-460.0,0.00016438,2]
[372909987,1752803437001,-460.0,0.00016438,2]
[372909988,1752803437011,-460.0,0.00016438,2]
[372909989,1752803437019,-460.0,0.00016438,2]
[372909990,1752803437027,-464.74532973,0.00016438,2]
[372909991,1752803437035,-460.0,0.00016438,2]
[372909992,1752803437044,-460.9865203,0.00016438,2]
[372909993,1752803437052,-500.02847837,0.00016438,2]
[372909994,1752803437060,-461.71334295,0.00016438,2]
[372909995,1752803437069,-469.70991855,0.00016438,2]
[372909996,1752803437078,-598.45,0.00016438,2]
[372909997,1752803437086,-460.4512256,0.00016438,2]
[372909998,1752803437099,-178.92803564,0.00016438,2]
[372909999,1752803437107,-460.0,0.00016438,2]
[372910000,1752803437116,-1316.85,0.00016438,2]
[372910001,1752803437125,-460.0,0.00016438,2]
[372910002,1752803437134,-460.58248748,0.00016438,2]
[372910003,1752803437142,-460.0,0.00016438,2]
[372910004,1752803437151,-470.5986001,0.00016438,2]
[372910005,1752803437159,-460.0,0.00016438,2]
[372910007,1752803437168,-494.89617692,0.00016438,2]
[372910008,1752803437177,-461.01031065,0.00016438,2]
[372910009,1752803437187,-460.0,0.00016438,2]
[372910010,1752803437196,-441.69743977,0.00016438,2]
[372910012,1752803437205,-460.0,0.00016438,2]
[372910013,1752803437215,-460.63588749,0.00016438,2]
[372910016,1752803437224,-460.0,0.00016438,2]
[372910018,1752803437234,-460.52861276,0.00016438,2]
[372910019,1752803437243,-460.0,0.00016438,2]
[372910022,1752803437253,-462.86183082,0.00016438,2]
[372910023,1752803437262,-505.8813291,0.00016438,2]
[372910024,1752803437272,-610.93991046,0.00016473,2]
[372910026,1752803437282,-501.20043012,0.00016473,2]
[372910027,1752803437291,-513.29827409,0.00016473,2]
[372910028,1752803437301,-501.0107326,0.00016473,2]
[372910029,1752803437311,-597.79031558,0.00016473,2]
[372910031,1752803437320,-500.0,0.00016473,2]
[372910033,1752803437329,-505.55918506,0.00016473,2]
[372910035,1752803437340,-502.72320978,0.00016473,2]
[372910037,1752803437350,-537.08722768,0.00016473,2]
[372910039,1752803437360,-210.85020416,0.00016473,2]
[372910040,1752803437369,-501.21737116,0.00016473,2]
[372910042,1752803437379,-500.0,0.00016473,2]
[372910044,1752803437388,-501.14653129,0.00016473,2]
[372910045,1752803437398,-500.7282824,0.00016473,2]
[372910046,1752803437408,-500.97586496,0.00016473,2]
[372910047,1752803437417,-500.61061412,0.00016473,2]
[372910048,1752803437427,-508.52353124,0.00016473,2]
[372910050,1752803437436,-504.20910621,0.00016473,2]
[372910052,1752803437446,-501.62724577,0.00016473,2]
[372910053,1752803437456,-500.0,0.00016473,2]
[372910054,1752803437467,-626.14457076,0.00016473,2]
[372910055,1752803437477,-500.44108566,0.00016473,2]
[372910056,1752803437487,-501.09362975,0.00016473,2]
[372910057,1752803437498,-500.16816774,0.00016473,2]
[372910059,1752803437508,-501.08100319,0.00016473,2]
[372910061,1752803437518,-503.26616054,0.00016473,2]
[372910063,1752803437528,-157.38790706,0.00016473,2]